Workbook

Sheet Instructions

Sheet Meta data_sheet
A1: Ambient Monitoring Station | B1: Details | D1: Ambient Monitoring Results | E1: Details
A2: Location | B2: Maules Creek | D2: PM2.5 monitoring start (dd/mm/yyyy hh:mm) | E2: 2023-06-01
A3: Easting | B3: =VLOOKUP($B$2,'Meta data_lookup'!$A$2:$D$5,2,FALSE) -> 225302 | D3: PM2.5 monitoring end | E3: 2023-07-01
A4: Northing | B4: =VLOOKUP($B$2,'Meta data_lookup'!$A$2:$D$5,3,FALSE) -> 6623037 | D4: PM2.5 monitoring period (h) | E4: =(E3-E2)*24 -> 720
A5: Site elevation (m) | B5: =VLOOKUP($B$2,'Meta data_lookup'!$A$2:$D$5,4,FALSE) -> ND | D5: Number of valid PM2.5 results | E5: =COUNTIF('Raw data_sheet'!G2:G673,"Valid") -> 667
A6: Description of surrounding land use | B6: Agriculture/Mining | D6: Proportion of valid PM2.5 results (%) | E6: =E5/E4 -> 0.9263888889
A7: Typical sources impacting on the site | B7: Agriculture/Mining/Unsealed Roads | D7: PM10 monitoring start (dd/mm/yyyy hh:mm) | E7: 2023-06-01
A8: Site compliance with AS/NZS 3580.1.1:2007 | B8: Yes | D8: PM10 monitoring end | E8: 2023-07-01
A9: PM2.5 method compliance with AS/NZS 3580.9.13:2013 | B9: Yes | D9: PM10 monitoring period (h) | E9: =(E8-E7)*24 -> 720
A10: PM2.5 instrument make | B10: Thermo Scientific | D10: Number of valid PM10 results | E10: =COUNTIF('Raw data_sheet'!J2:J673,"Valid") -> 667
A11: PM2.5 instrument model | B11: 1405DF | D11: Proportion of valid PM10 results (%) | E11: =E10/E9 -> 0.9263888889
A12: PM2.5 instrument intake height (m) | B12: 3.5
A13: PM10 method compliance with AS 3580.9.8-2008 | B13: No*
A14: PM10 instrument make | B14: Thermo Scientific
A15: PM10 instrument model | B15: 1405DF
A16: PM10 instrument intake height (m) | B16: 3.5
A17: *The 1405DF TEOM used at this site measures PM10 indirectly rather than directly. The unit does however meet the intent of AS 3580.9.8-2008, and this method has been accredited by the USEPA. It is considered scientifically robust and is used extensively throughout NSW with EPA's knowledge and informal acceptance.

Sheet Meta data_lookup
A1: Location | B1: Easting | C1: Northing | D1: Site elevation (m)
A2: Maules Creek | B2: 225302 | C2: 6623037 | D2: ND
A3: Breeza | B3: 237993 | C3: 6542606 | D3: ND
A4: Will-gai | B4: 231804 | C4: 6596392 | D4: ND
A5: Werris Creek | B5: 276783 | C5: 6528734 | D5: ND

Sheet Raw data_sheet
A1: Year | B1: Month | C1: Day | D1: Hour | E1: Date and time | F1: PM2.5_hourly | G1: PM2.5_Data_Status | H1: PM2.5_24hr_rolling_average | I1: PM10_hourly | J1: PM10_Data_Status | K1: PM10_24hr_rolling_average | L1: Cause of data invalidity, if applicable | M1: Detailed comments | N1: PM2.5_hourly_valid_plot | O1: PM2.5_24hr_rolling_ave_valid_plot | P1: PM10_hourly_valid_plot | Q1: PM10_24hr_rolling_ave_valid_plot | R1: PM10_hourly_valid_plot_series | S1: PM10_24hr_rolling_average_valid_plot_series | T1: PM2.5_hourly_valid_plot_series | U1: PM2.5_24hr_rolling_average_valid_plot_series
A2: 2023 | B2: 6 | C2: 1 | D2: 0 | E2: =DATE(A2,B2,C2)+TIME(D2,0,0) -> 45078 | F2: 0.43 | G2: Valid | H2: 3.392916667 | I2: 3 | J2: Valid | K2: 7.495416667 | N2: =IF(G2="Valid", F2, NA()) -> 0.43 | O2: =IF(G2="Valid", H2, NA()) -> 3.392916667 | P2: =IF(J2="Valid", I2, NA()) -> 3 | Q2: =IF(J2="Valid", K2, NA()) -> 7.495416667 | R2: 3 | S2: 7.495416667 | T2: 0.43 | U2: 3.392916667
A3: =A2 -> 2023 | B3: 6 | C3: =C2 -> 1 | D3: =IF(D2=23,0,D2+1) -> 1 | E3: =E2+0.0416666666666666 -> 45078.04167 | F3: 0.19 | G3: Valid | H3: 3.0525 | I3: 2.76 | J3: Valid | K3: 7.1775 | N3: =IF(G3="Valid", F3, NA()) -> 0.19 | O3: =IF(G3="Valid", H3, NA()) -> 3.0525 | P3: 2.76 | Q3: 7.1775 | R3: 2.76 | S3: 7.1775 | T3: 0.19 | U3: 3.0525
A4: =A3 -> 2023 | B4: 6 | C4: =C3 -> 1 | D4: =IF(D3=23,0,D3+1) -> 2 | E4: =E3+0.0416666666666666 -> 45078.08333 | F4: 0.15 | G4: Valid | H4: 2.790416667 | I4: 2.22 | J4: Valid | K4: 6.94625 | N4: 0.15 | O4: 2.790416667 | P4: 2.22 | Q4: 6.94625 | R4: 2.22 | S4: 6.94625 | T4: 0.15 | U4: 2.790416667
A5: 2023 | B5: 6 | C5: 1 | D5: 3 | E5: 45078.125 | F5: 3.68 | G5: Valid | H5: 2.775416667 | I5: 5.2 | J5: Valid | K5: 6.908333333 | N5: 3.68 | O5: 2.775416667 | P5: 5.2 | Q5: 6.908333333 | R5: 5.2 | S5: 6.908333333 | T5: 3.68 | U5: 2.775416667
A6: 2023 | B6: 6 | C6: 1 | D6: 4 | E6: 45078.16667 | F6: 2.04 | G6: Valid | H6: 2.772916667 | I6: 4.02 | J6: Valid | K6: 6.925833333 | N6: 2.04 | O6: 2.772916667 | P6: 4.02 | Q6: 6.925833333 | R6: 4.02 | S6: 6.925833333 | T6: 2.04 | U6: 2.772916667
A7: 2023 | B7: 6 | C7: 1 | D7: 5 | E7: 45078.20833 | F7: 3.17 | G7: Valid | H7: 2.73 | I7: 5.3 | J7: Valid | K7: 6.901666667 | N7: 3.17 | O7: 2.73 | P7: 5.3 | Q7: 6.901666667 | R7: 5.3 | S7: 6.901666667 | T7: 3.17 | U7: 2.73
A8: 2023 | B8: 6 | C8: 1 | D8: 6 | E8: 45078.25 | F8: 3.19 | G8: Valid | H8: 2.777083333 | I8: 4.63 | J8: Valid | K8: 6.935833333 | N8: 3.19 | O8: 2.777083333 | P8: 4.63 | Q8: 6.935833333 | R8: 4.63 | S8: 6.935833333 | T8: 3.19 | U8: 2.777083333
A9: 2023 | B9: 6 | C9: 1 | D9: 7 | E9: 45078.29167 | F9: 2.39 | G9: Valid | H9: 2.8925 | I9: 3.64 | J9: Valid | K9: 7.03875 | N9: 2.39 | O9: 2.8925 | P9: 3.64 | Q9: 7.03875 | R9: 3.64 | S9: 7.03875 | T9: 2.39 | U9: 2.8925
A10: 2023 | B10: 6 | C10: 1 | D10: 8 | E10: 45078.33333 | F10: 5.64 | G10: Valid | H10: 2.993333333 | I10: 7.82 | J10: Valid | K10: 7.151666667 | N10: 5.64 | O10: 2.993333333 | P10: 7.82 | Q10: 7.151666667 | R10: 7.82 | S10: 7.151666667 | T10: 5.64 | U10: 2.993333333
A11: 2023 | B11: 6 | C11: 1 | D11: 9 | E11: 45078.375 | F11: 5.04 | G11: Valid | H11: 3.157916667 | I11: 7.45 | J11: Valid | K11: 7.209583333 | N11: 5.04 | O11: 3.157916667 | P11: 7.45 | Q11: 7.209583333 | R11: 7.45 | S11: 7.209583333 | T11: 5.04 | U11: 3.157916667
A12: 2023 | B12: 6 | C12: 1 | D12: 10 | E12: 45078.41667 | F12: 1.56 | G12: Valid | H12: 3.106666667 | I12: 3.55 | J12: Valid | K12: 7.100833333 | N12: 1.56 | O12: 3.106666667 | P12: 3.55 | Q12: 7.100833333 | R12: 3.55 | S12: 7.100833333 | T12: 1.56 | U12: 3.106666667
A13: 2023 | B13: 6 | C13: 1 | D13: 11 | E13: 45078.45833 | F13: 1.1 | G13: Valid | H13: 2.995416667 | I13: 5.54 | J13: Valid | K13: 7.064166667 | N13: 1.1 | O13: 2.995416667 | P13: 5.54 | Q13: 7.064166667 | R13: 5.54 | S13: 7.064166667 | T13: 1.1 | U13: 2.995416667
A14: 2023 | B14: 6 | C14: 1 | D14: 12 | E14: 45078.5 | F14: 5.44 | G14: Valid | H14: 3.175833333 | I14: 9.47 | J14: Valid | K14: 7.31625 | N14: 5.44 | O14: 3.175833333 | P14: 9.47 | Q14: 7.31625 | R14: 9.47 | S14: 7.31625 | T14: 5.44 | U14: 3.175833333
A15: 2023 | B15: 6 | C15: 1 | D15: 13 | E15: 45078.54167 | F15: 6.01 | G15: Valid | H15: 3.344583333 | I15: 9.98 | J15: Valid | K15: 7.51375 | N15: 6.01 | O15: 3.344583333 | P15: 9.98 | Q15: 7.51375 | R15: 9.98 | S15: 7.51375 | T15: 6.01 | U15: 3.344583333
A16: 2023 | B16: 6 | C16: 1 | D16: 14 | E16: 45078.58333 | F16: 0.58 | G16: Valid | H16: 3.2375 | I16: 3.46 | J16: Valid | K16: 7.431666667 | N16: 0.58 | O16: 3.2375 | P16: 3.46 | Q16: 7.431666667 | R16: 3.46 | S16: 7.431666667 | T16: 0.58 | U16: 3.2375
A17: 2023 | B17: 6 | C17: 1 | D17: 15 | E17: 45078.625 | F17: 4.49 | G17: Valid | H17: 3.3675 | I17: 8.25 | J17: Valid | K17: 7.5475 | N17: 4.49 | O17: 3.3675 | P17: 8.25 | Q17: 7.5475 | R17: 8.25 | S17: 7.5475 | T17: 4.49 | U17: 3.3675
A18: 2023 | B18: 6 | C18: 1 | D18: 16 | E18: 45078.66667 | F18: 6.62 | G18: Valid | H18: 3.477083333 | I18: 10.74 | J18: Valid | K18: 7.595833333 | N18: 6.62 | O18: 3.477083333 | P18: 10.74 | Q18: 7.595833333 | R18: 10.74 | S18: 7.595833333 | T18: 6.62 | U18: 3.477083333
A19: 2023 | B19: 6 | C19: 1 | D19: 17 | E19: 45078.70833 | F19: 3.97 | G19: Valid | H19: 3.41625 | I19: 9.82 | J19: Valid | K19: 7.577083333 | N19: 3.97 | O19: 3.41625 | P19: 9.82 | Q19: 7.577083333 | R19: 9.82 | S19: 7.577083333 | T19: 3.97 | U19: 3.41625
A20: 2023 | B20: 6 | C20: 1 | D20: 18 | E20: 45078.75 | F20: 1.38 | G20: Valid | H20: 3.28375 | I20: 11.56 | J20: Valid | K20: 7.519166667 | N20: 1.38 | O20: 3.28375 | P20: 11.56 | Q20: 7.519166667 | R20: 11.56 | S20: 7.519166667 | T20: 1.38 | U20: 3.28375
A21: 2023 | B21: 6 | C21: 1 | D21: 19 | E21: 45078.79167 | F21: 4.44 | G21: Valid | H21: 3.209583333 | I21: 10.1 | J21: Valid | K21: 7.019583333 | N21: 4.44 | O21: 3.209583333 | P21: 10.1 | Q21: 7.019583333 | R21: 10.1 | S21: 7.019583333 | T21: 4.44 | U21: 3.209583333
A22: 2023 | B22: 6 | C22: 1 | D22: 20 | E22: 45078.83333 | F22: 4.5 | G22: Valid | H22: 3.231666667 | I22: 10.65 | J22: Valid | K22: 7.01375 | N22: 4.5 | O22: 3.231666667 | P22: 10.65 | Q22: 7.01375 | R22: 10.65 | S22: 7.01375 | T22: 4.5 | U22: 3.231666667
A23: 2023 | B23: 6 | C23: 1 | D23: 21 | E23: 45078.875 | F23: 5.33 | G23: Valid | H23: 3.250416667 | I23: 8.1 | J23: Valid | K23: 6.643333333 | N23: 5.33 | O23: 3.250416667 | P23: 8.1 | Q23: 6.643333333 | R23: 8.1 | S23: 6.643333333 | T23: 5.33 | U23: 3.250416667
A24: 2023 | B24: 6 | C24: 1 | D24: 22 | E24: 45078.91667 | F24: 4.67 | G24: Valid | H24: 3.287083333 | I24: 7.61 | J24: Valid | K24: 6.679166667 | N24: 4.67 | O24: 3.287083333 | P24: 7.61 | Q24: 6.679166667 | R24: 7.61 | S24: 6.679166667 | T24: 4.67 | U24: 3.287083333
A25: 2023 | B25: 6 | C25: =C24 -> 1 | D25: 23 | E25: 45078.95833 | F25: 3.69 | G25: Valid | H25: 3.320833333 | I25: 6.45 | J25: Valid | K25: 6.721666667 | N25: 3.69 | O25: 3.320833333 | P25: 6.45 | Q25: 6.721666667 | R25: 6.45 | S25: 6.721666667 | T25: 3.69 | U25: 3.320833333
A26: 2023 | B26: 6 | C26: =C2+1 -> 2 | D26: 0 | E26: 45079 | F26: 1.95 | G26: Valid | H26: 3.384166667 | I26: 4.45 | J26: Valid | K26: 6.782083333 | N26: 1.95 | O26: 3.384166667 | P26: 4.45 | Q26: 6.782083333 | R26: 4.45 | S26: 6.782083333 | T26: 1.95 | U26: 3.384166667
A27: 2023 | B27: 6 | C27: =C3+1 -> 2 | D27: 1 | E27: 45079.04167 | F27: 4.48 | G27: Valid | H27: 3.562916667 | I27: 6.39 | J27: Valid | K27: 6.933333333 | N27: 4.48 | O27: 3.562916667 | P27: 6.39 | Q27: 6.933333333 | R27: 6.39 | S27: 6.933333333 | T27: 4.48 | U27: 3.562916667
A28: 2023 | B28: 6 | C28: 2 | D28: 2 | E28: 45079.08333 | F28: 1.52 | G28: Valid | H28: 3.62 | I28: 3.74 | J28: Valid | K28: 6.996666667 | N28: 1.52 | O28: 3.62 | P28: 3.74 | Q28: 6.996666667 | R28: 3.74 | S28: 6.996666667 | T28: 1.52 | U28: 3.62
A29: 2023 | B29: 6 | C29: 2 | D29: 3 | E29: 45079.125 | F29: 3.27 | G29: Valid | H29: 3.602916667 | I29: 5.19 | J29: Valid | K29: 6.99625 | N29: 3.27 | O29: 3.602916667 | P29: 5.19 | Q29: 6.99625 | R29: 5.19 | S29: 6.99625 | T29: 3.27 | U29: 3.602916667
A30: 2023 | B30: 6 | C30: 2 | D30: 4 | E30: 45079.16667 | F30: -0.91 | G30: Valid | H30: 3.48 | I30: 0.53 | J30: Valid | K30: 6.850833333 | N30: -0.91 | O30: 3.48 | P30: 0.53 | Q30: 6.850833333 | R30: 0.53 | S30: 6.850833333 | T30: -0.91 | U30: 3.48
A31: 2023 | B31: 6 | C31: 2 | D31: 5 | E31: 45079.20833 | F31: -0.16 | G31: Valid | H31: 3.34125 | I31: 1.41 | J31: Valid | K31: 6.68875 | N31: -0.16 | O31: 3.34125 | P31: 1.41 | Q31: 6.68875 | R31: 1.41 | S31: 6.68875 | T31: -0.16 | U31: 3.34125
A32: 2023 | B32: 6 | C32: 2 | D32: 6 | E32: 45079.25 | F32: -1.44 | G32: Valid | H32: 3.148333333 | I32: 0.12 | J32: Valid | K32: 6.500833333 | N32: -1.44 | O32: 3.148333333 | P32: 0.12 | Q32: 6.500833333 | R32: 0.12 | S32: 6.500833333 | T32: -1.44 | U32: 3.148333333
A33: 2023 | B33: 6 | C33: 2 | D33: 7 | E33: 45079.29167 | F33: 0.68 | G33: Valid | H33: 3.077083333 | I33: 2.59 | J33: Valid | K33: 6.457083333 | N33: 0.68 | O33: 3.077083333 | P33: 2.59 | Q33: 6.457083333 | R33: 2.59 | S33: 6.457083333 | T33: 0.68 | U33: 3.077083333
A34: 2023 | B34: 6 | C34: 2 | D34: 8 | E34: 45079.33333 | F34: -0.06 | G34: Valid | H34: 2.839583333 | I34: 1.77 | J34: Valid | K34: 6.205 | N34: -0.06 | O34: 2.839583333 | P34: 1.77 | Q34: 6.205 | R34: 1.77 | S34: 6.205 | T34: -0.06 | U34: 2.839583333
A35: 2023 | B35: 6 | C35: 2 | D35: 9 | E35: 45079.375 | F35: 2.45 | G35: Valid | H35: 2.731666667 | I35: 5.18 | J35: Valid | K35: 6.110416667 | N35: 2.45 | O35: 2.731666667 | P35: 5.18 | Q35: 6.110416667 | R35: 5.18 | S35: 6.110416667 | T35: 2.45 | U35: 2.731666667
A36: 2023 | B36: 6 | C36: 2 | D36: 10 | E36: 45079.41667 | F36: 2.93 | G36: Valid | H36: 2.78875 | I36: 6.54 | J36: Valid | K36: 6.235 | N36: 2.93 | O36: 2.78875 | P36: 6.54 | Q36: 6.235 | R36: 6.54 | S36: 6.235 | T36: 2.93 | U36: 2.78875
A37: 2023 | B37: 6 | C37: 2 | D37: 11 | E37: 45079.45833 | F37: 1.7 | G37: Valid | H37: 2.81375 | I37: 7.22 | J37: Valid | K37: 6.305 | N37: 1.7 | O37: 2.81375 | P37: 7.22 | Q37: 6.305 | R37: 7.22 | S37: 6.305 | T37: 1.7 | U37: 2.81375
A38: 2023 | B38: 6 | C38: 2 | D38: 12 | E38: 45079.5 | F38: 6.12 | G38: Valid | H38: 2.842083333 | I38: 24.3 | J38: Valid | K38: 6.922916667 | N38: 6.12 | O38: 2.842083333 | P38: 24.3 | Q38: 6.922916667 | R38: 24.3 | S38: 6.922916667 | T38: 6.12 | U38: 2.842083333
A39: 2023 | B39: 6 | C39: 2 | D39: 13 | E39: 45079.54167 | F39: 4.91 | G39: Valid | H39: 2.79625 | I39: 17.26 | J39: Valid | K39: 7.22625 | N39: 4.91 | O39: 2.79625 | P39: 17.26 | Q39: 7.22625 | R39: 17.26 | S39: 7.22625 | T39: 4.91 | U39: 2.79625
A40: 2023 | B40: 6 | C40: 2 | D40: 14 | E40: 45079.58333 | F40: 7.95 | G40: Valid | H40: 3.103333333 | I40: 14.56 | J40: Valid | K40: 7.68875 | N40: 7.95 | O40: 3.103333333 | P40: 14.56 | Q40: 7.68875 | R40: 14.56 | S40: 7.68875 | T40: 7.95 | U40: 3.103333333
A41: 2023 | B41: 6 | C41: 2 | D41: 15 | E41: 45079.625 | F41: 6.31 | G41: Valid | H41: 3.179166667 | I41: 13.01 | J41: Valid | K41: 7.887083333 | N41: 6.31 | O41: 3.179166667 | P41: 13.01 | Q41: 7.887083333 | R41: 13.01 | S41: 7.887083333 | T41: 6.31 | U41: 3.179166667
A42: 2023 | B42: 6 | C42: 2 | D42: 16 | E42: 45079.66667 | F42: 7.01 | G42: Valid | H42: 3.195416667 | I42: 12.84 | J42: Valid | K42: 7.974583333 | N42: 7.01 | O42: 3.195416667 | P42: 12.84 | Q42: 7.974583333 | R42: 12.84 | S42: 7.974583333 | T42: 7.01 | U42: 3.195416667
A43: 2023 | B43: 6 | C43: 2 | D43: 17 | E43: 45079.70833 | F43: 7.45 | G43: Valid | H43: 3.340416667 | I43: 14.32 | J43: Valid | K43: 8.162083333 | N43: 7.45 | O43: 3.340416667 | P43: 14.32 | Q43: 8.162083333 | R43: 14.32 | S43: 8.162083333 | T43: 7.45 | U43: 3.340416667
A44: 2023 | B44: 6 | C44: 2 | D44: 18 | E44: 45079.75 | F44: 5.7 | G44: Valid | H44: 3.520416667 | I44: 21.5 | J44: Valid | K44: 8.57625 | N44: 5.7 | O44: 3.520416667 | P44: 21.5 | Q44: 8.57625 | R44: 21.5 | S44: 8.57625 | T44: 5.7 | U44: 3.520416667
A45: 2023 | B45: 6 | C45: 2 | D45: 19 | E45: 45079.79167 | F45: 4.59 | G45: Valid | H45: 3.526666667 | I45: 11.26 | J45: Valid | K45: 8.624583333 | N45: 4.59 | O45: 3.526666667 | P45: 11.26 | Q45: 8.624583333 | R45: 11.26 | S45: 8.624583333 | T45: 4.59 | U45: 3.526666667
A46: 2023 | B46: 6 | C46: 2 | D46: 20 | E46: 45079.83333 | F46: 2.19 | G46: Valid | H46: 3.430416667 | I46: 5.7 | J46: Valid | K46: 8.418333333 | N46: 2.19 | O46: =IF(G46="Valid", H46, NA()) -> 3.430416667 | P46: =IF(J46="Valid", I46, NA()) -> 5.7 | Q46: 8.418333333 | R46: 5.7 | S46: 8.418333333 | T46: 2.19 | U46: 3.430416667
A47: 2023 | B47: 6 | C47: 2 | D47: 21 | E47: 45079.875 | F47: 7.83 | G47: Valid | H47: 3.534583333 | I47: 22.79 | J47: Valid | K47: 9.030416667 | N47: 7.83 | O47: 3.534583333 | P47: 22.79 | Q47: 9.030416667 | R47: 22.79 | S47: 9.030416667 | T47: 7.83 | U47: 3.534583333
A48: 2023 | B48: 6 | C48: 2 | D48: 22 | E48: 45079.91667 | F48: 6.11 | G48: Valid | H48: 3.594583333 | I48: 11.88 | J48: Valid | K48: 9.208333333 | N48: 6.11 | O48: 3.594583333 | P48: 11.88 | Q48: 9.208333333 | R48: 11.88 | S48: 9.208333333 | T48: 6.11 | U48: 3.594583333
A49: 2023 | B49: 6 | C49: 2 | D49: 23 | E49: 45079.95833 | F49: 6.61 | G49: Valid | H49: 3.71625 | I49: 13.21 | J49: Valid | K49: 9.49 | N49: 6.61 | O49: 3.71625 | P49: 13.21 | Q49: 9.49 | R49: 13.21 | S49: 9.49 | T49: 6.61 | U49: 3.71625
A50: 2023 | B50: 6 | C50: 3 | D50: 0 | E50: 45080 | F50: 6.74 | G50: Valid | H50: 3.915833333 | I50: 9.87 | J50: Valid | K50: 9.715833333 | N50: 6.74 | O50: 3.915833333 | P50: 9.87 | Q50: 9.715833333 | R50: 9.87 | S50: 9.715833333 | T50: 6.74 | U50: 3.915833333
A51: 2023 | B51: 6 | C51: 3 | D51: 1 | E51: 45080.04167 | F51: 1.97 | G51: Valid | H51: 3.81125 | I51: 3.78 | J51: Valid | K51: 9.607083333 | N51: 1.97 | O51: 3.81125 | P51: 3.78 | Q51: 9.607083333 | R51: 3.78 | S51: 9.607083333 | T51: 1.97 | U51: 3.81125
A52: 2023 | B52: 6 | C52: 3 | D52: 2 | E52: 45080.08333 | F52: 3.52 | G52: Valid | H52: 3.894583333 | I52: 5.5 | J52: Valid | K52: 9.680416667 | N52: 3.52 | O52: 3.894583333 | P52: 5.5 | Q52: 9.680416667 | R52: 5.5 | S52: 9.680416667 | T52: 3.52 | U52: 3.894583333
A53: 2023 | B53: 6 | C53: 3 | D53: 3 | E53: 45080.125 | F53: 3.63 | G53: Valid | H53: 3.909583333 | I53: 5.8 | J53: Valid | K53: 9.705833333 | N53: 3.63 | O53: 3.909583333 | P53: 5.8 | Q53: 9.705833333 | R53: 5.8 | S53: 9.705833333 | T53: 3.63 | U53: 3.909583333
A54: 2023 | B54: 6 | C54: 3 | D54: 4 | E54: 45080.16667 | F54: 6.26 | G54: Valid | H54: 4.208333333 | I54: 9.08 | J54: Valid | K54: 10.06208333 | N54: 6.26 | O54: 4.208333333 | P54: 9.08 | Q54: 10.06208333 | R54: 9.08 | S54: 10.06208333 | T54: 6.26 | U54: 4.208333333
A55: 2023 | B55: 6 | C55: 3 | D55: 5 | E55: 45080.20833 | F55: 4.96 | G55: Valid | H55: 4.421666667 | I55: 6.87 | J55: Valid | K55: 10.28958333 | N55: 4.96 | O55: 4.421666667 | P55: 6.87 | Q55: 10.28958333 | R55: 6.87 | S55: 10.28958333 | T55: 4.96 | U55: 4.421666667
A56: 2023 | B56: 6 | C56: 3 | D56: 6 | E56: 45080.25 | F56: 1.78 | G56: Valid | H56: 4.555833333 | I56: 3.48 | J56: Valid | K56: 10.42958333 | N56: 1.78 | O56: 4.555833333 | P56: 3.48 | Q56: 10.42958333 | R56: 3.48 | S56: 10.42958333 | T56: 1.78 | U56: 4.555833333
A57: 2023 | B57: 6 | C57: 3 | D57: 7 | E57: 45080.29167 | F57: 5.75 | G57: Valid | H57: 4.767083333 | I57: 7.62 | J57: Valid | K57: 10.63916667 | N57: 5.75 | O57: 4.767083333 | P57: 7.62 | Q57: 10.63916667 | R57: 7.62 | S57: 10.63916667 | T57: 5.75 | U57: 4.767083333
A58: 2023 | B58: 6 | C58: 3 | D58: 8 | E58: 45080.33333 | F58: 8.22 | G58: Valid | H58: 5.112083333 | I58: 11.96 | J58: Valid | K58: 11.06375 | N58: 8.22 | O58: 5.112083333 | P58: 11.96 | Q58: 11.06375 | R58: 11.96 | S58: 11.06375 | T58: 8.22 | U58: 5.112083333
A59: 2023 | B59: 6 | C59: 3 | D59: 9 | E59: 45080.375 | F59: 8.43 | G59: Valid | H59: 5.36125 | I59: 13.25 | J59: Valid | K59: 11.4 | N59: 8.43 | O59: 5.36125 | P59: 13.25 | Q59: 11.4 | R59: 13.25 | S59: 11.4 | T59: 8.43 | U59: 5.36125
A60: 2023 | B60: 6 | C60: 3 | D60: 10 | E60: 45080.41667 | F60: 2.46 | G60: Valid | H60: 5.341666667 | I60: 6.62 | J60: Valid | K60: 11.40333333 | N60: 2.46 | O60: 5.341666667 | P60: 6.62 | Q60: 11.40333333 | R60: 6.62 | S60: 11.40333333 | T60: 2.46 | U60: 5.341666667
A61: 2023 | B61: 6 | C61: 3 | D61: 11 | E61: 45080.45833 | F61: 4.64 | G61: Valid | H61: 5.464166667 | I61: 8.81 | J61: Valid | K61: 11.46958333 | N61: 4.64 | O61: 5.464166667 | P61: 8.81 | Q61: 11.46958333 | R61: 8.81 | S61: 11.46958333 | T61: 4.64 | U61: 5.464166667
A62: 2023 | B62: 6 | C62: 3 | D62: 12 | E62: 45080.5 | F62: 2.79 | G62: Valid | H62: 5.325416667 | I62: 5.79 | J62: Valid | K62: 10.69833333 | N62: 2.79 | O62: 5.325416667 | P62: 5.79 | Q62: 10.69833333 | R62: 5.79 | S62: 10.69833333 | T62: 2.79 | U62: 5.325416667
A63: 2023 | B63: 6 | C63: 3 | D63: 13 | E63: 45080.54167 | F63: 7.08 | G63: Valid | H63: 5.415833333 | I63: 11.03 | J63: Valid | K63: 10.43875 | N63: 7.08 | O63: 5.415833333 | P63: 11.03 | Q63: 10.43875 | R63: 11.03 | S63: 10.43875 | T63: 7.08 | U63: 5.415833333
A64: 2023 | B64: 6 | C64: 3 | D64: 14 | E64: 45080.58333 | F64: 6.79 | G64: Valid | H64: 5.3675 | I64: 12.38 | J64: Valid | K64: 10.34791667 | N64: 6.79 | O64: 5.3675 | P64: 12.38 | Q64: 10.34791667 | R64: 12.38 | S64: 10.34791667 | T64: 6.79 | U64: 5.3675
A65: 2023 | B65: 6 | C65: 3 | D65: 15 | E65: 45080.625 | F65: 7.03 | G65: Valid | H65: 5.3975 | I65: 11.43 | J65: Valid | K65: 10.28208333 | N65: 7.03 | O65: 5.3975 | P65: 11.43 | Q65: 10.28208333 | R65: 11.43 | S65: 10.28208333 | T65: 7.03 | U65: 5.3975
A66: 2023 | B66: 6 | C66: 3 | D66: 16 | E66: 45080.66667 | F66: 3.69 | G66: Valid | H66: 5.259166667 | I66: 7.71 | J66: Valid | K66: 10.06833333 | N66: =IF(G66="Valid", F66, NA()) -> 3.69 | O66: =IF(G66="Valid", H66, NA()) -> 5.259166667 | P66: =IF(J66="Valid", I66, NA()) -> 7.71 | Q66: =IF(J66="Valid", K66, NA()) -> 10.06833333 | R66: 7.71 | S66: 10.06833333 | T66: 3.69 | U66: 5.259166667
A67: 2023 | B67: 6 | C67: 3 | D67: 17 | E67: 45080.70833 | F67: 6.27 | G67: Valid | H67: 5.21 | I67: 9.61 | J67: Valid | K67: 9.872083333 | N67: 6.27 | O67: 5.21 | P67: 9.61 | Q67: 9.872083333 | R67: 9.61 | S67: 9.872083333 | T67: 6.27 | U67: 5.21
A68: =A67 -> 2023 | B68: 6 | C68: 3 | D68: =IF(D67=23,0,D67+1) -> 18 | E68: =E67+0.0416666666666666 -> 45080.75 | F68: 7.69 | G68: Valid | H68: 5.292916667 | I68: 24.64 | J68: Valid | K68: 10.00291667 | N68: 7.69 | O68: 5.292916667 | P68: 24.64 | Q68: 10.00291667 | R68: 24.64 | S68: 10.00291667 | T68: 7.69 | U68: 5.292916667
A69: 2023 | B69: 6 | C69: 3 | D69: 19 | E69: 45080.79167 | F69: 6.46 | G69: Valid | H69: 5.370833333 | I69: 16.97 | J69: Valid | K69: 10.24083333 | N69: 6.46 | O69: 5.370833333 | P69: 16.97 | Q69: 10.24083333 | R69: 16.97 | S69: 10.24083333 | T69: 6.46 | U69: 5.370833333
A70: 2023 | B70: 6 | C70: 3 | D70: 20 | E70: 45080.83333 | F70: 4.24 | G70: Valid | H70: 5.45625 | I70: 9.16 | J70: Valid | K70: 10.385 | N70: 4.24 | O70: 5.45625 | P70: 9.16 | Q70: 10.385 | R70: 9.16 | S70: 10.385 | T70: 4.24 | U70: 5.45625
A71: 2023 | B71: 6 | C71: 3 | D71: 21 | E71: 45080.875 | F71: 6.2 | G71: Valid | H71: 5.388333333 | I71: 9.95 | J71: Valid | K71: 9.85 | N71: 6.2 | O71: 5.388333333 | P71: 9.95 | Q71: 9.85 | R71: 9.95 | S71: 9.85 | T71: 6.2 | U71: 5.388333333
A72: 2023 | B72: 6 | C72: 3 | D72: 22 | E72: 45080.91667 | F72: 7.75 | G72: Valid | H72: 5.456666667 | I72: 11.57 | J72: Valid | K72: 9.837083333 | N72: 7.75 | O72: 5.456666667 | P72: 11.57 | Q72: 9.837083333 | R72: 11.57 | S72: 9.837083333 | T72: 7.75 | U72: 5.456666667
A73: 2023 | B73: 6 | C73: 3 | D73: 23 | E73: 45080.95833 | F73: 8.07 | G73: Valid | H73: 5.5175 | I73: 11.3 | J73: Valid | K73: 9.7575 | N73: 8.07 | O73: 5.5175 | P73: 11.3 | Q73: 9.7575 | R73: 11.3 | S73: 9.7575 | T73: 8.07 | U73: 5.5175
A74: 2023 | B74: 6 | C74: 4 | D74: 0 | E74: 45081 | F74: 8.03 | G74: Valid | H74: 5.57125 | I74: 11.57 | J74: Valid | K74: 9.828333333 | N74: 8.03 | O74: 5.57125 | P74: 11.57 | Q74: 9.828333333 | R74: 11.57 | S74: 9.828333333 | T74: 8.03 | U74: 5.57125
A75: 2023 | B75: 6 | C75: 4 | D75: 1 | E75: 45081.04167 | F75: 6.97 | G75: Valid | H75: 5.779583333 | I75: 14.66 | J75: Valid | K75: 10.28166667 | N75: 6.97 | O75: 5.779583333 | P75: 14.66 | Q75: 10.28166667 | R75: 14.66 | S75: 10.28166667 | T75: 6.97 | U75: 5.779583333
A76: 2023 | B76: 6 | C76: 4 | D76: 2 | E76: 45081.08333 | F76: 4.13 | G76: Valid | H76: 5.805 | I76: 7.49 | J76: Valid | K76: 10.36458333 | N76: 4.13 | O76: 5.805 | P76: 7.49 | Q76: 10.36458333 | R76: 7.49 | S76: 10.36458333 | T76: 4.13 | U76: 5.805
A77: 2023 | B77: 6 | C77: 4 | D77: 3 | E77: 45081.125 | F77: 2.79 | G77: Valid | H77: 5.77 | I77: 5.78 | J77: Valid | K77: 10.36375 | N77: 2.79 | O77: 5.77 | P77: 5.78 | Q77: 10.36375 | R77: 5.78 | S77: 10.36375 | T77: 2.79 | U77: 5.77
A78: 2023 | B78: 6 | C78: 4 | D78: 4 | E78: 45081.16667 | F78: 5.29 | G78: Valid | H78: 5.729583333 | I78: 7.77 | J78: Valid | K78: 10.30916667 | N78: 5.29 | O78: 5.729583333 | P78: 7.77 | Q78: 10.30916667 | R78: 7.77 | S78: 10.30916667 | T78: 5.29 | U78: 5.729583333
A79: 2023 | B79: 6 | C79: 4 | D79: 5 | E79: 45081.20833 | F79: 7.15 | G79: Valid | H79: 5.820833333 | I79: 10.16 | J79: Valid | K79: 10.44625 | N79: 7.15 | O79: 5.820833333 | P79: 10.16 | Q79: 10.44625 | R79: 10.16 | S79: 10.44625 | T79: 7.15 | U79: 5.820833333
A80: 2023 | B80: 6 | C80: 4 | D80: 6 | E80: 45081.25 | F80: 7.34 | G80: Valid | H80: 6.0525 | I80: 16.45 | J80: Valid | K80: 10.98666667 | N80: 7.34 | O80: 6.0525 | P80: 16.45 | Q80: 10.98666667 | R80: 16.45 | S80: 10.98666667 | T80: 7.34 | U80: 6.0525
A81: 2023 | B81: 6 | C81: 4 | D81: 7 | E81: 45081.29167 | F81: 9.36 | G81: Valid | H81: 6.202916667 | I81: 19.67 | J81: Valid | K81: 11.48875 | N81: 9.36 | O81: 6.202916667 | P81: 19.67 | Q81: 11.48875 | R81: 19.67 | S81: 11.48875 | T81: 9.36 | U81: 6.202916667
A82: 2023 | B82: 6 | C82: 4 | D82: 8 | E82: 45081.33333 | F82: 7.85 | G82: Valid | H82: 6.1875 | I82: 14.72 | J82: Valid | K82: 11.60375 | N82: 7.85 | O82: 6.1875 | P82: 14.72 | Q82: 11.60375 | R82: 14.72 | S82: 11.60375 | T82: 7.85 | U82: 6.1875
A83: 2023 | B83: 6 | C83: 4 | D83: 9 | E83: 45081.375 | F83: 7.37 | G83: Valid | H83: 6.143333333 | I83: 13.03 | J83: Valid | K83: 11.59458333 | N83: 7.37 | O83: 6.143333333 | P83: 13.03 | Q83: 11.59458333 | R83: 13.03 | S83: 11.59458333 | T83: 7.37 | U83: 6.143333333
A84: 2023 | B84: 6 | C84: 4 | D84: 10 | E84: 45081.41667 | F84: 10.18 | G84: Valid | H84: 6.465 | I84: 15.33 | J84: Valid | K84: 11.9575 | N84: 10.18 | O84: 6.465 | P84: 15.33 | Q84: 11.9575 | R84: 15.33 | S84: 11.9575 | T84: 10.18 | U84: 6.465
A85: 2023 | B85: 6 | C85: 4 | D85: 11 | E85: 45081.45833 | F85: 6.45 | G85: Valid | H85: 6.540416667 | I85: 11.89 | J85: Valid | K85: 12.08583333 | N85: 6.45 | O85: 6.540416667 | P85: 11.89 | Q85: 12.08583333 | R85: 11.89 | S85: 12.08583333 | T85: 6.45 | U85: 6.540416667
A86: 2023 | B86: 6 | C86: 4 | D86: 12 | E86: 45081.5 | F86: 7.65 | G86: Valid | H86: 6.742916667 | I86: 13.86 | J86: Valid | K86: 12.42208333 | N86: 7.65 | O86: 6.742916667 | P86: 13.86 | Q86: 12.42208333 | R86: 13.86 | S86: 12.42208333 | T86: 7.65 | U86: 6.742916667
A87: 2023 | B87: 6 | C87: 4 | D87: 13 | E87: 45081.54167 | F87: 11.46 | G87: Valid | H87: 6.925416667 | I87: 16.48 | J87: Valid | K87: 12.64916667 | N87: 11.46 | O87: 6.925416667 | P87: 16.48 | Q87: 12.64916667 | R87: 16.48 | S87: 12.64916667 | T87: 11.46 | U87: 6.925416667
A88: 2023 | B88: 6 | C88: 4 | D88: 14 | E88: 45081.58333 | F88: 10.13 | G88: Valid | H88: 7.064583333 | I88: 14.04 | J88: Valid | K88: 12.71833333 | N88: 10.13 | O88: 7.064583333 | P88: 14.04 | Q88: 12.71833333 | R88: 14.04 | S88: 12.71833333 | T88: 10.13 | U88: 7.064583333
A89: 2023 | B89: 6 | C89: 4 | D89: 15 | E89: 45081.625 | F89: 11.73 | G89: Valid | H89: 7.260416667 | I89: 17.13 | J89: Valid | K89: 12.95583333 | N89: 11.73 | O89: 7.260416667 | P89: 17.13 | Q89: 12.95583333 | R89: 17.13 | S89: 12.95583333 | T89: 11.73 | U89: 7.260416667
A90: 2023 | B90: 6 | C90: 4 | D90: 16 | E90: 45081.66667 | F90: 9.11 | G90: Valid | H90: 7.48625 | I90: 15.98 | J90: Valid | K90: 13.30041667 | N90: 9.11 | O90: 7.48625 | P90: 15.98 | Q90: 13.30041667 | R90: 15.98 | S90: 13.30041667 | T90: 9.11 | U90: 7.48625
A91: 2023 | B91: 6 | C91: =C67+1 -> 4 | D91: 17 | E91: 45081.70833 | F91: 5.36 | G91: Valid | H91: 7.448333333 | I91: 9.18 | J91: Valid | K91: 13.2825 | N91: 5.36 | O91: 7.448333333 | P91: 9.18 | Q91: 13.2825 | R91: 9.18 | S91: 13.2825 | T91: 5.36 | U91: 7.448333333
A92: 2023 | B92: 6 | C92: 4 | D92: 18 | E92: 45081.75 | F92: 4.8 | G92: Valid | H92: 7.327916667 | I92: 9.65 | J92: Valid | K92: 12.65791667 | N92: 4.8 | O92: 7.327916667 | P92: 9.65 | Q92: 12.65791667 | R92: 9.65 | S92: 12.65791667 | T92: 4.8 | U92: 7.327916667
A93: 2023 | B93: 6 | C93: 4 | D93: 19 | E93: 45081.79167 | F93: 4.23 | G93: Valid | H93: 7.235 | I93: 10.95 | J93: Valid | K93: 12.40708333 | N93: 4.23 | O93: 7.235 | P93: 10.95 | Q93: 12.40708333 | R93: 10.95 | S93: 12.40708333 | T93: 4.23 | U93: 7.235
A94: 2023 | B94: 6 | C94: 4 | D94: 20 | E94: 45081.83333 | F94: 4.15 | G94: Valid | H94: 7.23125 | I94: 8.33 | J94: Valid | K94: 12.3725 | N94: 4.15 | O94: 7.23125 | P94: 8.33 | Q94: 12.3725 | R94: 8.33 | S94: 12.3725 | T94: 4.15 | U94: 7.23125
A95: 2023 | B95: 6 | C95: 4 | D95: 21 | E95: 45081.875 | F95: 2.26 | G95: Valid | H95: 7.067083333 | I95: 5.28 | J95: Valid | K95: 12.17791667 | N95: 2.26 | O95: 7.067083333 | P95: 5.28 | Q95: 12.17791667 | R95: 5.28 | S95: 12.17791667 | T95: 2.26 | U95: 7.067083333
A96: 2023 | B96: 6 | C96: 4 | D96: 22 | E96: 45081.91667 | F96: 2.69 | G96: Valid | H96: 6.85625 | I96: 5.14 | J96: Valid | K96: 11.91 | N96: 2.69 | O96: 6.85625 | P96: 5.14 | Q96: 11.91 | R96: 5.14 | S96: 11.91 | T96: 2.69 | U96: 6.85625
A97: 2023 | B97: 6 | C97: 4 | D97: 23 | E97: 45081.95833 | F97: 0.02 | G97: Valid | H97: 6.520833333 | I97: 1.49 | J97: Valid | K97: 11.50125 | N97: 0.02 | O97: 6.520833333 | P97: 1.49 | Q97: 11.50125 | R97: 1.49 | S97: 11.50125 | T97: 0.02 | U97: 6.520833333
A98: 2023 | B98: 6 | C98: 5 | D98: 0 | E98: 45082 | F98: 5.74 | G98: Valid | H98: 6.425416667 | I98: 7.83 | J98: Valid | K98: 11.34541667 | N98: 5.74 | O98: 6.425416667 | P98: 7.83 | Q98: 11.34541667 | R98: 7.83 | S98: 11.34541667 | T98: 5.74 | U98: 6.425416667
A99: 2023 | B99: 6 | C99: 5 | D99: 1 | E99: 45082.04167 | F99: 6.6 | G99: Valid | H99: 6.41 | I99: 8.75 | J99: Valid | K99: 11.09916667 | N99: 6.6 | O99: 6.41 | P99: 8.75 | Q99: 11.09916667 | R99: 8.75 | S99: 11.09916667 | T99: 6.6 | U99: 6.41
A100: 2023 | B100: 6 | C100: 5 | D100: 2 | E100: 45082.08333 | F100: 3.94 | G100: Valid | H100: 6.402083333 | I100: 5.78 | J100: Valid | K100: 11.02791667 | N100: 3.94 | O100: 6.402083333 | P100: 5.78 | Q100: 11.02791667 | R100: 5.78 | S100: 11.02791667 | T100: 3.94 | U100: 6.402083333
A101: 2023 | B101: 6 | C101: 5 | D101: 3 | E101: 45082.125 | F101: 2.03 | G101: Valid | H101: 6.370416667 | I101: 3.82 | J101: Valid | K101: 10.94625 | N101: 2.03 | O101: 6.370416667 | P101: 3.82 | Q101: 10.94625 | R101: 3.82 | S101: 10.94625 | T101: 2.03 | U101: 6.370416667
A102: 2023 | B102: 6 | C102: 5 | D102: 4 | E102: 45082.16667 | G102: Invalid | H102: 6.417391304 | J102: Invalid | K102: 11.08434783 | L102: Power Failure | M102: Power outage - system reset
A103: 2023 | B103: 6 | C103: 5 | D103: 5 | E103: 45082.20833 | G103: Invalid | H103: 6.384090909 | J103: Invalid | K103: 11.12636364 | L103: Power Failure | M103: Power outage - system reset
A104: 2023 | B104: 6 | C104: 5 | D104: 6 | E104: 45082.25 | G104: Invalid | H104: 6.338571429 | J104: Invalid | K104: 10.87285714 | L104: Power Failure | M104: Power outage - system reset
A105: 2023 | B105: 6 | C105: 5 | D105: 7 | E105: 45082.29167 | F105: 2.26 | G105: Valid | H105: 6.00047619 | I105: 4.01 | J105: Valid | K105: 10.12714286 | N105: 2.26 | O105: 6.00047619 | P105: 4.01 | Q105: 10.12714286 | R105: 4.01 | S105: 10.12714286 | T105: 2.26 | U105: 6.00047619
A106: 2023 | B106: 6 | C106: 5 | D106: 8 | E106: 45082.33333 | F106: 5.68 | G106: Valid | H106: 5.897142857 | I106: 8.24 | J106: Valid | K106: 9.818571429 | N106: 5.68 | O106: 5.897142857 | P106: 8.24 | Q106: 9.818571429 | R106: 8.24 | S106: 9.818571429 | T106: 5.68 | U106: 5.897142857
A107: 2023 | B107: 6 | C107: 5 | D107: 9 | E107: 45082.375 | F107: 2.44 | G107: Valid | H107: 5.662380952 | I107: 8.05 | J107: Valid | K107: 9.581428571 | N107: 2.44 | O107: 5.662380952 | P107: 8.05 | Q107: 9.581428571 | R107: 8.05 | S107: 9.581428571 | T107: 2.44 | U107: 5.662380952
A108: 2023 | B108: 6 | C108: 5 | D108: 10 | E108: 45082.41667 | F108: 2.3 | G108: Valid | H108: 5.287142857 | I108: 4.33 | J108: Valid | K108: 9.057619048 | N108: 2.3 | O108: 5.287142857 | P108: 4.33 | Q108: 9.057619048 | R108: 4.33 | S108: 9.057619048 | T108: 2.3 | U108: 5.287142857
A109: 2023 | B109: 6 | C109: 5 | D109: 11 | E109: 45082.45833 | F109: 0.19 | G109: Valid | H109: 4.989047619 | I109: 4 | J109: Valid | K109: 8.681904762 | N109: 0.19 | O109: 4.989047619 | P109: 4 | Q109: 8.681904762 | R109: 4 | S109: 8.681904762 | T109: 0.19 | U109: 4.989047619
A110: 2023 | B110: 6 | C110: 5 | D110: 12 | E110: 45082.5 | F110: 1.48 | G110: Valid | H110: 4.695238095 | I110: 3.49 | J110: Valid | K110: 8.188095238 | N110: 1.48 | O110: 4.695238095 | P110: 3.49 | Q110: 8.188095238 | R110: 3.49 | S110: 8.188095238 | T110: 1.48 | U110: 4.695238095
A111: 2023 | B111: 6 | C111: 5 | D111: 13 | E111: 45082.54167 | F111: 2.13 | G111: Valid | H111: 4.250952381 | I111: 4.29 | J111: Valid | K111: 7.607619048 | N111: 2.13 | O111: 4.250952381 | P111: 4.29 | Q111: 7.607619048 | R111: 4.29 | S111: 7.607619048 | T111: 2.13 | U111: 4.250952381
A112: 2023 | B112: 6 | C112: 5 | D112: 14 | E112: 45082.58333 | F112: 2.52 | G112: Valid | H112: 3.888571429 | I112: 4.3 | J112: Valid | K112: 7.143809524 | N112: 2.52 | O112: 3.888571429 | P112: 4.3 | Q112: 7.143809524 | R112: 4.3 | S112: 7.143809524 | T112: 2.52 | U112: 3.888571429
A113: 2023 | B113: 6 | C113: 5 | D113: 15 | E113: 45082.625 | F113: 3.57 | G113: Valid | H113: 3.5 | I113: 5.77 | J113: Valid | K113: 6.602857143 | N113: 3.57 | O113: 3.5 | P113: 5.77 | Q113: 6.602857143 | R113: 5.77 | S113: 6.602857143 | T113: 3.57 | U113: 3.5
A114: 2023 | B114: 6 | C114: 5 | D114: 16 | E114: 45082.66667 | F114: 2.25 | G114: Valid | H114: 3.173333333 | I114: 6.43 | J114: Valid | K114: 6.148095238 | N114: 2.25 | O114: 3.173333333 | P114: 6.43 | Q114: 6.148095238 | R114: 6.43 | S114: 6.148095238 | T114: 2.25 | U114: 3.173333333
A115: 2023 | B115: 6 | C115: 5 | D115: 17 | E115: 45082.70833 | F115: 1.87 | G115: Valid | H115: 3.007142857 | I115: 9.36 | J115: Valid | K115: 6.156666667 | N115: 1.87 | O115: 3.007142857 | P115: 9.36 | Q115: 6.156666667 | R115: 9.36 | S115: 6.156666667 | T115: 1.87 | U115: 3.007142857
A116: 2023 | B116: 6 | C116: 5 | D116: 18 | E116: 45082.75 | F116: 2.12 | G116: Valid | H116: 2.87952381 | I116: 14.09 | J116: Valid | K116: 6.368095238 | N116: 2.12 | O116: 2.87952381 | P116: 14.09 | Q116: 6.368095238 | R116: 14.09 | S116: 6.368095238 | T116: 2.12 | U116: 2.87952381
A117: 2023 | B117: 6 | C117: 5 | D117: 19 | E117: 45082.79167 | F117: 1.9 | G117: Valid | H117: 2.768571429 | I117: 5.45 | J117: Valid | K117: 6.106190476 | N117: 1.9 | O117: 2.768571429 | P117: 5.45 | Q117: 6.106190476 | R117: 5.45 | S117: 6.106190476 | T117: 1.9 | U117: 2.768571429
A118: 2023 | B118: 6 | C118: 5 | D118: 20 | E118: 45082.83333 | F118: 1.58 | G118: Valid | H118: 2.646190476 | I118: 4.3 | J118: Valid | K118: 5.914285714 | N118: 1.58 | O118: 2.646190476 | P118: 4.3 | Q118: 5.914285714 | R118: 4.3 | S118: 5.914285714 | T118: 1.58 | U118: 2.646190476
A119: 2023 | B119: 6 | C119: 5 | D119: 21 | E119: 45082.875 | F119: 1.05 | G119: Valid | H119: 2.588571429 | I119: 4.11 | J119: Valid | K119: 5.858571429 | N119: 1.05 | O119: 2.588571429 | P119: 4.11 | Q119: 5.858571429 | R119: 4.11 | S119: 5.858571429 | T119: 1.05 | U119: 2.588571429
A120: 2023 | B120: 6 | C120: 5 | D120: 22 | E120: 45082.91667 | F120: 1.45 | G120: Valid | H120: 2.52952381 | I120: 3.06 | J120: Valid | K120: 5.75952381 | N120: 1.45 | O120: 2.52952381 | P120: 3.06 | Q120: 5.75952381 | R120: 3.06 | S120: 5.75952381 | T120: 1.45 | U120: 2.52952381
A121: 2023 | B121: 6 | C121: 5 | D121: 23 | E121: 45082.95833 | F121: 5.82 | G121: Valid | H121: 2.805714286 | I121: 8.18 | J121: Valid | K121: 6.078095238 | N121: 5.82 | O121: 2.805714286 | P121: 8.18 | Q121: 6.078095238 | R121: 8.18 | S121: 6.078095238 | T121: 5.82 | U121: 2.805714286
A122: 2023 | B122: 6 | C122: 6 | D122: 0 | E122: 45083 | F122: 4.87 | G122: Valid | H122: 2.764285714 | I122: 6.27 | J122: Valid | K122: 6.003809524 | N122: 4.87 | O122: 2.764285714 | P122: 6.27 | Q122: 6.003809524 | R122: 6.27 | S122: 6.003809524 | T122: 4.87 | U122: 2.764285714
A123: 2023 | B123: 6 | C123: 6 | D123: 1 | E123: 45083.04167 | F123: 1.94 | G123: Valid | H123: 2.542380952 | I123: 3.26 | J123: Valid | K123: 5.742380952 | N123: 1.94 | O123: 2.542380952 | P123: 3.26 | Q123: 5.742380952 | R123: 3.26 | S123: 5.742380952 | T123: 1.94 | U123: 2.542380952
A124: 2023 | B124: 6 | C124: 6 | D124: 2 | E124: 45083.08333 | F124: 1.92 | G124: Valid | H124: 2.446190476 | I124: 3.39 | J124: Valid | K124: 5.628571429 | N124: 1.92 | O124: 2.446190476 | P124: 3.39 | Q124: 5.628571429 | R124: 3.39 | S124: 5.628571429 | T124: 1.92 | U124: 2.446190476
A125: 2023 | B125: 6 | C125: 6 | D125: 3 | E125: 45083.125 | F125: 4.05 | G125: Valid | H125: 2.542380952 | I125: 5.16 | J125: Valid | K125: 5.692380952 | N125: 4.05 | O125: 2.542380952 | P125: 5.16 | Q125: 5.692380952 | R125: 5.16 | S125: 5.692380952 | T125: 4.05 | U125: 2.542380952
A126: 2023 | B126: 6 | C126: 6 | D126: 4 | E126: 45083.16667 | F126: 1.79 | G126: Valid | H126: 2.508181818 | I126: 2.82 | J126: Valid | K126: 5.561818182 | N126: 1.79 | O126: 2.508181818 | P126: 2.82 | Q126: 5.561818182 | R126: 2.82 | S126: 5.561818182 | T126: 1.79 | U126: 2.508181818
A127: 2023 | B127: 6 | C127: 6 | D127: 5 | E127: 45083.20833 | F127: 2.78 | G127: Valid | H127: 2.52 | I127: 4.66 | J127: Valid | K127: 5.522608696 | N127: 2.78 | O127: 2.52 | P127: 4.66 | Q127: 5.522608696 | R127: 4.66 | S127: 5.522608696 | T127: 2.78 | U127: 2.52
A128: 2023 | B128: 6 | C128: 6 | D128: 6 | E128: 45083.25 | F128: 5.2 | G128: Valid | H128: 2.631666667 | I128: 8.82 | J128: Valid | K128: 5.66 | N128: 5.2 | O128: 2.631666667 | P128: 8.82 | Q128: 5.66 | R128: 8.82 | S128: 5.66 | T128: 5.2 | U128: 2.631666667
A129: 2023 | B129: 6 | C129: 6 | D129: 7 | E129: 45083.29167 | F129: -0.68 | G129: Valid | H129: 2.509166667 | I129: 2.6 | J129: Valid | K129: 5.60125 | N129: -0.68 | O129: 2.509166667 | P129: 2.6 | Q129: 5.60125 | R129: 2.6 | S129: 5.60125 | T129: -0.68 | U129: 2.509166667
A130: 2023 | B130: 6 | C130: 6 | D130: 8 | E130: 45083.33333 | F130: 4.28 | G130: Valid | H130: 2.450833333 | I130: 7.9 | J130: Valid | K130: 5.587083333 | N130: =IF(G130="Valid", F130, NA()) -> 4.28 | O130: =IF(G130="Valid", H130, NA()) -> 2.450833333 | P130: =IF(J130="Valid", I130, NA()) -> 7.9 | Q130: =IF(J130="Valid", K130, NA()) -> 5.587083333 | R130: 7.9 | S130: 5.587083333 | T130: 4.28 | U130: 2.450833333
A131: 2023 | B131: 6 | C131: 6 | D131: 9 | E131: 45083.375 | F131: 4.91 | G131: Valid | H131: 2.55375 | I131: 8.58 | J131: Valid | K131: 5.609166667 | N131: 4.91 | O131: 2.55375 | P131: 8.58 | Q131: 5.609166667 | R131: 8.58 | S131: 5.609166667 | T131: 4.91 | U131: 2.55375
A132: =A131 -> 2023 | B132: 6 | C132: 6 | D132: =IF(D131=23,0,D131+1) -> 10 | E132: =E131+0.0416666666666666 -> 45083.41667 | F132: 4.26 | G132: Valid | H132: 2.635416667 | I132: 9.98 | J132: Valid | K132: 5.844583333 | N132: 4.26 | O132: 2.635416667 | P132: 9.98 | Q132: 5.844583333 | R132: 9.98 | S132: 5.844583333 | T132: 4.26 | U132: 2.635416667
A133: 2023 | B133: 6 | C133: 6 | D133: 11 | E133: 45083.45833 | F133: -0.46 | G133: Valid | H133: 2.608333333 | I133: 4.76 | J133: Valid | K133: 5.87625 | N133: -0.46 | O133: 2.608333333 | P133: 4.76 | Q133: 5.87625 | R133: 4.76 | S133: 5.87625 | T133: -0.46 | U133: 2.608333333
A134: 2023 | B134: 6 | C134: 6 | D134: 12 | E134: 45083.5 | F134: 2.55 | G134: Valid | H134: 2.652916667 | I134: 5.63 | J134: Valid | K134: 5.965416667 | N134: 2.55 | O134: 2.652916667 | P134: 5.63 | Q134: 5.965416667 | R134: 5.63 | S134: 5.965416667 | T134: 2.55 | U134: 2.652916667
A135: 2023 | B135: 6 | C135: 6 | D135: 13 | E135: 45083.54167 | F135: 0.72 | G135: Valid | H135: 2.594166667 | I135: 2.11 | J135: Valid | K135: 5.874583333 | N135: 0.72 | O135: 2.594166667 | P135: 2.11 | Q135: 5.874583333 | R135: 2.11 | S135: 5.874583333 | T135: 0.72 | U135: 2.594166667
A136: 2023 | B136: 6 | C136: 6 | D136: 14 | E136: 45083.58333 | F136: 6.28 | G136: Valid | H136: 2.750833333 | I136: 9.92 | J136: Valid | K136: 6.10875 | N136: 6.28 | O136: 2.750833333 | P136: 9.92 | Q136: 6.10875 | R136: 9.92 | S136: 6.10875 | T136: 6.28 | U136: 2.750833333
A137: 2023 | B137: 6 | C137: 6 | D137: 15 | E137: 45083.625 | F137: 4.93 | G137: Valid | H137: 2.8075 | I137: 11.59 | J137: Valid | K137: 6.35125 | N137: 4.93 | O137: 2.8075 | P137: 11.59 | Q137: 6.35125 | R137: 11.59 | S137: 6.35125 | T137: 4.93 | U137: 2.8075
A138: 2023 | B138: 6 | C138: 6 | D138: 16 | E138: 45083.66667 | F138: 6.55 | G138: Valid | H138: 2.986666667 | I138: 14.5 | J138: Valid | K138: 6.6875 | N138: 6.55 | O138: 2.986666667 | P138: 14.5 | Q138: 6.6875 | R138: 14.5 | S138: 6.6875 | T138: 6.55 | U138: 2.986666667
A139: 2023 | B139: 6 | C139: 6 | D139: 17 | E139: 45083.70833 | F139: 2.38 | G139: Valid | H139: 3.007916667 | I139: 7.95 | J139: Valid | K139: 6.62875 | N139: 2.38 | O139: 3.007916667 | P139: 7.95 | Q139: 6.62875 | R139: 7.95 | S139: 6.62875 | T139: 2.38 | U139: 3.007916667
A140: 2023 | B140: 6 | C140: 6 | D140: 18 | E140: 45083.75 | F140: 3.21 | G140: Valid | H140: 3.053333333 | I140: 10.04 | J140: Valid | K140: 6.46 | N140: 3.21 | O140: 3.053333333 | P140: 10.04 | Q140: 6.46 | R140: 10.04 | S140: 6.46 | T140: 3.21 | U140: 3.053333333
A141: 2023 | B141: 6 | C141: 6 | D141: 19 | E141: 45083.79167 | F141: 2.76 | G141: Valid | H141: 3.089166667 | I141: 6.64 | J141: Valid | K141: 6.509583333 | N141: 2.76 | O141: 3.089166667 | P141: 6.64 | Q141: 6.509583333 | R141: 6.64 | S141: 6.509583333 | T141: 2.76 | U141: 3.089166667
A142: 2023 | B142: 6 | C142: 6 | D142: 20 | E142: 45083.83333 | F142: 1.1 | G142: Valid | H142: 3.069166667 | I142: 7.28 | J142: Valid | K142: 6.63375 | N142: 1.1 | O142: 3.069166667 | P142: 7.28 | Q142: 6.63375 | R142: 7.28 | S142: 6.63375 | T142: 1.1 | U142: 3.069166667
A143: 2023 | B143: 6 | C143: 6 | D143: 21 | E143: 45083.875 | F143: 4.86 | G143: Valid | H143: 3.227916667 | I143: 9.84 | J143: Valid | K143: 6.8725 | N143: 4.86 | O143: 3.227916667 | P143: 9.84 | Q143: 6.8725 | R143: 9.84 | S143: 6.8725 | T143: 4.86 | U143: 3.227916667
A144: 2023 | B144: 6 | C144: 6 | D144: 22 | E144: 45083.91667 | F144: 3.2 | G144: Valid | H144: 3.300833333 | I144: 6.98 | J144: Valid | K144: 7.035833333 | N144: 3.2 | O144: 3.300833333 | P144: 6.98 | Q144: 7.035833333 | R144: 6.98 | S144: 7.035833333 | T144: 3.2 | U144: 3.300833333
A145: 2023 | B145: 6 | C145: 6 | D145: 23 | E145: 45083.95833 | F145: 2.11 | G145: Valid | H145: 3.14625 | I145: 5.54 | J145: Valid | K145: 6.925833333 | N145: 2.11 | O145: 3.14625 | P145: 5.54 | Q145: 6.925833333 | R145: 5.54 | S145: 6.925833333 | T145: 2.11 | U145: 3.14625
A146: 2023 | B146: 6 | C146: 7 | D146: 0 | E146: 45084 | F146: 2.97 | G146: Valid | H146: 3.067083333 | I146: 6.21 | J146: Valid | K146: 6.923333333 | N146: 2.97 | O146: 3.067083333 | P146: 6.21 | Q146: 6.923333333 | R146: 6.21 | S146: 6.923333333 | T146: 2.97 | U146: 3.067083333
A147: 2023 | B147: 6 | C147: 7 | D147: 1 | E147: 45084.04167 | F147: -0.33 | G147: Valid | H147: 2.9725 | I147: 3.04 | J147: Valid | K147: 6.914166667 | N147: -0.33 | O147: 2.9725 | P147: 3.04 | Q147: 6.914166667 | R147: 3.04 | S147: 6.914166667 | T147: -0.33 | U147: 2.9725
A148: 2023 | B148: 6 | C148: 7 | D148: 2 | E148: 45084.08333 | F148: 0.15 | G148: Valid | H148: 2.89875 | I148: 2.19 | J148: Valid | K148: 6.864166667 | N148: 0.15 | O148: 2.89875 | P148: 2.19 | Q148: 6.864166667 | R148: 2.19 | S148: 6.864166667 | T148: 0.15 | U148: 2.89875
A149: 2023 | B149: 6 | C149: 7 | D149: 3 | E149: 45084.125 | F149: 2.35 | G149: Valid | H149: 2.827916667 | I149: 3.98 | J149: Valid | K149: 6.815 | N149: 2.35 | O149: 2.827916667 | P149: 3.98 | Q149: 6.815 | R149: 3.98 | S149: 6.815 | T149: 2.35 | U149: 2.827916667
A150: 2023 | B150: 6 | C150: 7 | D150: 4 | E150: 45084.16667 | F150: 0.23 | G150: Valid | H150: 2.762916667 | I150: 1.49 | J150: Valid | K150: 6.759583333 | N150: 0.23 | O150: 2.762916667 | P150: 1.49 | Q150: 6.759583333 | R150: 1.49 | S150: 6.759583333 | T150: 0.23 | U150: 2.762916667
A151: 2023 | B151: 6 | C151: 7 | D151: 5 | E151: 45084.20833 | F151: -1.28 | G151: Valid | H151: 2.59375 | I151: 0.56 | J151: Valid | K151: 6.58875 | N151: -1.28 | O151: 2.59375 | P151: 0.56 | Q151: 6.58875 | R151: 0.56 | S151: 6.58875 | T151: -1.28 | U151: 2.59375
A152: 2023 | B152: 6 | C152: 7 | D152: 6 | E152: 45084.25 | F152: 3.32 | G152: Valid | H152: 2.515416667 | I152: 5.11 | J152: Valid | K152: 6.434166667 | N152: 3.32 | O152: 2.515416667 | P152: 5.11 | Q152: 6.434166667 | R152: 5.11 | S152: 6.434166667 | T152: 3.32 | U152: 2.515416667
A153: 2023 | B153: 6 | C153: 7 | D153: 7 | E153: 45084.29167 | F153: 1.86 | G153: Valid | H153: 2.62125 | I153: 2.76 | J153: Valid | K153: 6.440833333 | N153: 1.86 | O153: 2.62125 | P153: 2.76 | Q153: 6.440833333 | R153: 2.76 | S153: 6.440833333 | T153: 1.86 | U153: 2.62125
A154: 2023 | B154: 6 | C154: 7 | D154: 8 | E154: 45084.33333 | F154: 3.16 | G154: Valid | H154: 2.574583333 | I154: 4.34 | J154: Valid | K154: 6.2925 | N154: 3.16 | O154: 2.574583333 | P154: 4.34 | Q154: 6.2925 | R154: 4.34 | S154: 6.2925 | T154: 3.16 | U154: 2.574583333
A155: 2023 | B155: 6 | C155: =C131+1 -> 7 | D155: 9 | E155: 45084.375 | F155: 2.56 | G155: Valid | H155: 2.476666667 | I155: 4.11 | J155: Valid | K155: 6.10625 | N155: 2.56 | O155: 2.476666667 | P155: 4.11 | Q155: 6.10625 | R155: 4.11 | S155: 6.10625 | T155: 2.56 | U155: 2.476666667
A156: 2023 | B156: 6 | C156: 7 | D156: 10 | E156: 45084.41667 | F156: 3.08 | G156: Valid | H156: 2.4275 | I156: 7.51 | J156: Valid | K156: 6.003333333 | N156: 3.08 | O156: 2.4275 | P156: 7.51 | Q156: 6.003333333 | R156: 7.51 | S156: 6.003333333 | T156: 3.08 | U156: 2.4275
A157: 2023 | B157: 6 | C157: 7 | D157: 11 | E157: 45084.45833 | F157: 5.38 | G157: Valid | H157: 2.670833333 | I157: 8.21 | J157: Valid | K157: 6.147083333 | N157: 5.38 | O157: 2.670833333 | P157: 8.21 | Q157: 6.147083333 | R157: 8.21 | S157: 6.147083333 | T157: 5.38 | U157: 2.670833333
A158: 2023 | B158: 6 | C158: 7 | D158: 12 | E158: 45084.5 | F158: 6.76 | G158: Valid | H158: 2.84625 | I158: 10.04 | J158: Valid | K158: 6.330833333 | N158: 6.76 | O158: 2.84625 | P158: 10.04 | Q158: 6.330833333 | R158: 10.04 | S158: 6.330833333 | T158: 6.76 | U158: 2.84625
A159: 2023 | B159: 6 | C159: 7 | D159: 13 | E159: 45084.54167 | F159: 3.65 | G159: Valid | H159: 2.968333333 | I159: 5.78 | J159: Valid | K159: 6.48375 | N159: 3.65 | O159: 2.968333333 | P159: 5.78 | Q159: 6.48375 | R159: 5.78 | S159: 6.48375 | T159: 3.65 | U159: 2.968333333
A160: 2023 | B160: 6 | C160: 7 | D160: 14 | E160: 45084.58333 | F160: 5.47 | G160: Valid | H160: 2.934583333 | I160: 7.74 | J160: Valid | K160: 6.392916667 | N160: 5.47 | O160: 2.934583333 | P160: 7.74 | Q160: 6.392916667 | R160: 7.74 | S160: 6.392916667 | T160: 5.47 | U160: 2.934583333
A161: 2023 | B161: 6 | C161: 7 | D161: 15 | E161: 45084.625 | F161: 6.04 | G161: Valid | H161: 2.980833333 | I161: 8.85 | J161: Valid | K161: 6.27875 | N161: 6.04 | O161: 2.980833333 | P161: 8.85 | Q161: 6.27875 | R161: 8.85 | S161: 6.27875 | T161: 6.04 | U161: 2.980833333
A162: 2023 | B162: 6 | C162: 7 | D162: 16 | E162: 45084.66667 | F162: 1.4 | G162: Valid | H162: 2.76625 | I162: 4.23 | J162: Valid | K162: 5.850833333 | N162: 1.4 | O162: 2.76625 | P162: 4.23 | Q162: 5.850833333 | R162: 4.23 | S162: 5.850833333 | T162: 1.4 | U162: 2.76625
A163: 2023 | B163: 6 | C163: 7 | D163: 17 | E163: 45084.70833 | F163: 4.82 | G163: Valid | H163: 2.867916667 | I163: 7.31 | J163: Valid | K163: 5.824166667 | N163: 4.82 | O163: 2.867916667 | P163: 7.31 | Q163: 5.824166667 | R163: 7.31 | S163: 5.824166667 | T163: 4.82 | U163: 2.867916667
A164: 2023 | B164: 6 | C164: 7 | D164: 18 | E164: 45084.75 | F164: 3.32 | G164: Valid | H164: 2.8725 | I164: 6.18 | J164: Valid | K164: 5.663333333 | N164: 3.32 | O164: 2.8725 | P164: 6.18 | Q164: 5.663333333 | R164: 6.18 | S164: 5.663333333 | T164: 3.32 | U164: 2.8725
A165: 2023 | B165: 6 | C165: 7 | D165: 19 | E165: 45084.79167 | F165: 0.56 | G165: Valid | H165: 2.780833333 | I165: 2.63 | J165: Valid | K165: 5.49625 | N165: 0.56 | O165: 2.780833333 | P165: 2.63 | Q165: 5.49625 | R165: 2.63 | S165: 5.49625 | T165: 0.56 | U165: 2.780833333
A166: 2023 | B166: 6 | C166: 7 | D166: 20 | E166: 45084.83333 | F166: 6.21 | G166: Valid | H166: 2.99375 | I166: 7.23 | J166: Valid | K166: 5.494166667 | N166: 6.21 | O166: 2.99375 | P166: 7.23 | Q166: 5.494166667 | R166: 7.23 | S166: 5.494166667 | T166: 6.21 | U166: 2.99375
A167: 2023 | B167: 6 | C167: 7 | D167: 21 | E167: 45084.875 | F167: 0.73 | G167: Valid | H167: 2.821666667 | I167: 2.67 | J167: Valid | K167: 5.195416667 | N167: 0.73 | O167: 2.821666667 | P167: 2.67 | Q167: 5.195416667 | R167: 2.67 | S167: 5.195416667 | T167: 0.73 | U167: 2.821666667
A168: 2023 | B168: 6 | C168: 7 | D168: 22 | E168: 45084.91667 | F168: 2.43 | G168: Valid | H168: 2.789583333 | I168: 4.17 | J168: Valid | K168: 5.078333333 | N168: 2.43 | O168: 2.789583333 | P168: 4.17 | Q168: 5.078333333 | R168: 4.17 | S168: 5.078333333 | T168: 2.43 | U168: 2.789583333
A169: 2023 | B169: 6 | C169: 7 | D169: 23 | E169: 45084.95833 | F169: 2.03 | G169: Valid | H169: 2.78625 | I169: 3.65 | J169: Valid | K169: 4.999583333 | N169: 2.03 | O169: 2.78625 | P169: 3.65 | Q169: 4.999583333 | R169: 3.65 | S169: 4.999583333 | T169: 2.03 | U169: 2.78625
A170: 2023 | B170: 6 | C170: 8 | D170: 0 | E170: 45085 | F170: 2.53 | G170: Valid | H170: 2.767916667 | I170: 4.26 | J170: Valid | K170: 4.918333333 | N170: 2.53 | O170: 2.767916667 | P170: 4.26 | Q170: 4.918333333 | R170: 4.26 | S170: 4.918333333 | T170: 2.53 | U170: 2.767916667
A171: 2023 | B171: 6 | C171: 8 | D171: 1 | E171: 45085.04167 | F171: 2.85 | G171: Valid | H171: 2.900416667 | I171: 5.05 | J171: Valid | K171: 5.002083333 | N171: 2.85 | O171: 2.900416667 | P171: 5.05 | Q171: 5.002083333 | R171: 5.05 | S171: 5.002083333 | T171: 2.85 | U171: 2.900416667
A172: 2023 | B172: 6 | C172: 8 | D172: 2 | E172: 45085.08333 | F172: 2.45 | G172: Valid | H172: 2.99625 | I172: 4.03 | J172: Valid | K172: 5.07875 | N172: 2.45 | O172: 2.99625 | P172: 4.03 | Q172: 5.07875 | R172: 4.03 | S172: 5.07875 | T172: 2.45 | U172: 2.99625
A173: 2023 | B173: 6 | C173: 8 | D173: 3 | E173: 45085.125 | F173: 0.79 | G173: Valid | H173: 2.93125 | I173: 2.2 | J173: Valid | K173: 5.004583333 | N173: 0.79 | O173: 2.93125 | P173: 2.2 | Q173: 5.004583333 | R173: 2.2 | S173: 5.004583333 | T173: 0.79 | U173: 2.93125
A174: 2023 | B174: 6 | C174: 8 | D174: 4 | E174: 45085.16667 | F174: 2.23 | G174: Valid | H174: 3.014583333 | I174: 3.11 | J174: Valid | K174: 5.072083333 | N174: 2.23 | O174: 3.014583333 | P174: 3.11 | Q174: 5.072083333 | R174: 3.11 | S174: 5.072083333 | T174: 2.23 | U174: 3.014583333
A175: 2023 | B175: 6 | C175: 8 | D175: 5 | E175: 45085.20833 | F175: 1.79 | G175: Valid | H175: 3.1425 | I175: 3.41 | J175: Valid | K175: 5.190833333 | N175: 1.79 | O175: 3.1425 | P175: 3.41 | Q175: 5.190833333 | R175: 3.41 | S175: 5.190833333 | T175: 1.79 | U175: 3.1425
A176: 2023 | B176: 6 | C176: 8 | D176: 6 | E176: 45085.25 | F176: -1.86 | G176: Valid | H176: 2.926666667 | I176: -0.84 | J176: Valid | K176: 4.942916667 | N176: -1.86 | O176: 2.926666667 | P176: -0.84 | Q176: 4.942916667 | R176: -0.84 | S176: 4.942916667 | T176: -1.86 | U176: 2.926666667
A177: 2023 | B177: 6 | C177: 8 | D177: 7 | E177: 45085.29167 | F177: 0.8 | G177: Valid | H177: 2.8825 | I177: 1.86 | J177: Valid | K177: 4.905416667 | N177: 0.8 | O177: 2.8825 | P177: 1.86 | Q177: 4.905416667 | R177: 1.86 | S177: 4.905416667 | T177: 0.8 | U177: 2.8825
A178: 2023 | B178: 6 | C178: 8 | D178: 8 | E178: 45085.33333 | F178: -0.5 | G178: Valid | H178: 2.73 | I178: 0.9 | J178: Valid | K178: 4.762083333 | N178: -0.5 | O178: 2.73 | P178: 0.9 | Q178: 4.762083333 | R178: 0.9 | S178: 4.762083333 | T178: -0.5 | U178: 2.73
A179: 2023 | B179: 6 | C179: 8 | D179: 9 | E179: 45085.375 | F179: 1.4 | G179: Valid | H179: 2.681666667 | I179: 4.59 | J179: Valid | K179: 4.782083333 | N179: 1.4 | O179: 2.681666667 | P179: 4.59 | Q179: 4.782083333 | R179: 4.59 | S179: 4.782083333 | T179: 1.4 | U179: 2.681666667
A180: 2023 | B180: 6 | C180: 8 | D180: 10 | E180: 45085.41667 | F180: 1.12 | G180: Valid | H180: 2.6 | I180: 3.58 | J180: Valid | K180: 4.618333333 | N180: 1.12 | O180: 2.6 | P180: 3.58 | Q180: 4.618333333 | R180: 3.58 | S180: 4.618333333 | T180: 1.12 | U180: 2.6
A181: 2023 | B181: 6 | C181: 8 | D181: 11 | E181: 45085.45833 | F181: 5.59 | G181: Valid | H181: 2.60875 | I181: 11.29 | J181: Valid | K181: 4.746666667 | N181: 5.59 | O181: 2.60875 | P181: 11.29 | Q181: 4.746666667 | R181: 11.29 | S181: 4.746666667 | T181: 5.59 | U181: 2.60875
A182: 2023 | B182: 6 | C182: 8 | D182: 12 | E182: 45085.5 | F182: 2.99 | G182: Valid | H182: 2.451666667 | I182: 7.28 | J182: Valid | K182: 4.631666667 | N182: 2.99 | O182: 2.451666667 | P182: 7.28 | Q182: 4.631666667 | R182: 7.28 | S182: 4.631666667 | T182: 2.99 | U182: 2.451666667
A183: 2023 | B183: 6 | C183: 8 | D183: 13 | E183: 45085.54167 | F183: 4.17 | G183: Valid | H183: 2.473333333 | I183: 8.31 | J183: Valid | K183: 4.737083333 | N183: 4.17 | O183: 2.473333333 | P183: 8.31 | Q183: 4.737083333 | R183: 8.31 | S183: 4.737083333 | T183: 4.17 | U183: 2.473333333
A184: 2023 | B184: 6 | C184: 8 | D184: 14 | E184: 45085.58333 | F184: 1.78 | G184: Valid | H184: 2.319583333 | I184: 3.57 | J184: Valid | K184: 4.563333333 | N184: 1.78 | O184: 2.319583333 | P184: 3.57 | Q184: 4.563333333 | R184: 3.57 | S184: 4.563333333 | T184: 1.78 | U184: 2.319583333
A185: 2023 | B185: 6 | C185: 8 | D185: 15 | E185: 45085.625 | F185: 3.72 | G185: Valid | H185: 2.222916667 | I185: 5.58 | J185: Valid | K185: 4.427083333 | N185: 3.72 | O185: 2.222916667 | P185: 5.58 | Q185: 4.427083333 | R185: 5.58 | S185: 4.427083333 | T185: 3.72 | U185: 2.222916667
A186: 2023 | B186: 6 | C186: 8 | D186: 16 | E186: 45085.66667 | F186: -6.2 | G186: Valid | H186: 1.90625 | I186: -5.03 | J186: Valid | K186: 4.04125 | N186: -6.2 | O186: 1.90625 | P186: -5.03 | Q186: 4.04125 | R186: -5.03 | S186: 4.04125 | T186: -6.2 | U186: 1.90625
A187: 2023 | B187: 6 | C187: 8 | D187: 17 | E187: 45085.70833 | F187: 2.43 | G187: Valid | H187: 1.806666667 | I187: 4.55 | J187: Valid | K187: 3.92625 | N187: 2.43 | O187: 1.806666667 | P187: 4.55 | Q187: 3.92625 | R187: 4.55 | S187: 3.92625 | T187: 2.43 | U187: 1.806666667
A188: 2023 | B188: 6 | C188: 8 | D188: 18 | E188: 45085.75 | F188: 3.69 | G188: Valid | H188: 1.822083333 | I188: 5.9 | J188: Valid | K188: 3.914583333 | N188: 3.69 | O188: 1.822083333 | P188: 5.9 | Q188: 3.914583333 | R188: 5.9 | S188: 3.914583333 | T188: 3.69 | U188: 1.822083333
A189: 2023 | B189: 6 | C189: 8 | D189: 19 | E189: 45085.79167 | F189: 0.22 | G189: Valid | H189: 1.807916667 | I189: 2.87 | J189: Valid | K189: 3.924583333 | N189: 0.22 | O189: 1.807916667 | P189: 2.87 | Q189: 3.924583333 | R189: 2.87 | S189: 3.924583333 | T189: 0.22 | U189: 1.807916667
A190: 2023 | B190: 6 | C190: 8 | D190: 20 | E190: 45085.83333 | F190: 3.58 | G190: Valid | H190: 1.698333333 | I190: 4.58 | J190: Valid | K190: 3.814166667 | N190: 3.58 | O190: 1.698333333 | P190: 4.58 | Q190: 3.814166667 | R190: 4.58 | S190: 3.814166667 | T190: 3.58 | U190: 1.698333333
A191: 2023 | B191: 6 | C191: 8 | D191: 21 | E191: 45085.875 | F191: 3.61 | G191: Valid | H191: 1.818333333 | I191: 5.81 | J191: Valid | K191: 3.945 | N191: 3.61 | O191: 1.818333333 | P191: 5.81 | Q191: 3.945 | R191: 5.81 | S191: 3.945 | T191: 3.61 | U191: 1.818333333
A192: 2023 | B192: 6 | C192: 8 | D192: 22 | E192: 45085.91667 | F192: 0.75 | G192: Valid | H192: 1.748333333 | I192: 2.36 | J192: Valid | K192: 3.869583333 | N192: 0.75 | O192: 1.748333333 | P192: 2.36 | Q192: 3.869583333 | R192: 2.36 | S192: 3.869583333 | T192: 0.75 | U192: 1.748333333
A193: 2023 | B193: 6 | C193: 8 | D193: 23 | E193: 45085.95833 | F193: 2.43 | G193: Valid | H193: 1.765 | I193: 4.71 | J193: Valid | K193: 3.91375 | N193: 2.43 | O193: 1.765 | P193: 4.71 | Q193: 3.91375 | R193: 4.71 | S193: 3.91375 | T193: 2.43 | U193: 1.765
A194: 2023 | B194: 6 | C194: 9 | D194: 0 | E194: 45086 | F194: 3.11 | G194: Valid | H194: 1.789166667 | I194: 5.98 | J194: Valid | K194: 3.985416667 | N194: =IF(G194="Valid", F194, NA()) -> 3.11 | O194: =IF(G194="Valid", H194, NA()) -> 1.789166667 | P194: =IF(J194="Valid", I194, NA()) -> 5.98 | Q194: =IF(J194="Valid", K194, NA()) -> 3.985416667 | R194: 5.98 | S194: 3.985416667 | T194: 3.11 | U194: 1.789166667
A195: 2023 | B195: 6 | C195: 9 | D195: 1 | E195: 45086.04167 | F195: 1.55 | G195: Valid | H195: 1.735 | I195: 3.85 | J195: Valid | K195: 3.935416667 | N195: 1.55 | O195: 1.735 | P195: 3.85 | Q195: 3.935416667 | R195: 3.85 | S195: 3.935416667 | T195: 1.55 | U195: 1.735
A196: =A195 -> 2023 | B196: 6 | C196: 9 | D196: =IF(D195=23,0,D195+1) -> 2 | E196: =E195+0.0416666666666666 -> 45086.08333 | F196: 4.78 | G196: Valid | H196: 1.832083333 | I196: 7.28 | J196: Valid | K196: 4.070833333 | N196: 4.78 | O196: 1.832083333 | P196: 7.28 | Q196: 4.070833333 | R196: 7.28 | S196: 4.070833333 | T196: 4.78 | U196: 1.832083333
A197: 2023 | B197: 6 | C197: 9 | D197: 3 | E197: 45086.125 | F197: 4.36 | G197: Valid | H197: 1.980833333 | I197: 6.6 | J197: Valid | K197: 4.254166667 | N197: 4.36 | O197: 1.980833333 | P197: 6.6 | Q197: 4.254166667 | R197: 6.6 | S197: 4.254166667 | T197: 4.36 | U197: 1.980833333
A198: 2023 | B198: 6 | C198: 9 | D198: 4 | E198: 45086.16667 | F198: 3 | G198: Valid | H198: 2.012916667 | I198: 4.27 | J198: Valid | K198: 4.3025 | N198: 3 | O198: 2.012916667 | P198: 4.27 | Q198: 4.3025 | R198: 4.27 | S198: 4.3025 | T198: 3 | U198: 2.012916667
A199: 2023 | B199: 6 | C199: 9 | D199: 5 | E199: 45086.20833 | F199: 3.19 | G199: Valid | H199: 2.07125 | I199: 5.34 | J199: Valid | K199: 4.382916667 | N199: 3.19 | O199: 2.07125 | P199: 5.34 | Q199: 4.382916667 | R199: 5.34 | S199: 4.382916667 | T199: 3.19 | U199: 2.07125
A200: 2023 | B200: 6 | C200: 9 | D200: 6 | E200: 45086.25 | F200: 1.67 | G200: Valid | H200: 2.218333333 | I200: 3.78 | J200: Valid | K200: 4.575416667 | N200: 1.67 | O200: 2.218333333 | P200: 3.78 | Q200: 4.575416667 | R200: 3.78 | S200: 4.575416667 | T200: 1.67 | U200: 2.218333333
... 521 more rows

Sheet Raw data_format
A1: Parameter | B1: Format | C1: Comment | D1: Units of measure | E1: Minimum | F1: Maximum
A2: Year | B2: yyyy | C2: 4 integer format | D2: Not applicable | E2: 2015 | F2: Until reporting ceases
A3: Month | B3: mm | C3: 2 integer format | D3: Not applicable | E3: 1 | F3: 12
A4: Day | B4: dd | C4: 2 integer format | D4: Not applicable | E4: 1 | F4: 31
A5: Hour | B5: hh | C5: 2 integer format | D5: Not applicable | E5: 0 | F5: 23
A6: PM10 | B6: 0 | C6: 1 decimal place resolution | D6: µg/m3 | E6: Negative | F6: Instrument specific
A7: PM2.5 | B7: 0 | C7: 2 decimal place resolution | D7: µg/m3 | E7: Negative | F7: Instrument specific
A8: Status | B8: Text | C8: 7 character format | D8: Not applicable | E8: Valid | F8: Invalid

Sheet Sheet1
